fUSD/lending_fUSD_20250402
["ID","MTS","AMOUNT","RATE_DAILY","PERIOD"]
[357015736,1743579051708,-262.43600686,0.00034386,30]
[357015737,1743579051717,-310.02076094,0.00034386,120]
[357015738,1743579051726,-507.35092304,0.00034386,120]
[357015739,1743579051735,-604.80211326,0.00034386,120]
[357015740,1743579051745,-408.63232651,0.00034386,120]
[357015741,1743579051755,-197.04823182,0.00034386,30]
[357015742,1743579051764,-150.0,0.00034548,10]
[357015743,1743579051776,-200.0,0.00034601,2]
[357015744,1743579051785,-1112.82,0.00034624,2]
[357015745,1743579051795,-158.8,0.00034716,2]
[357015746,1743579051807,-200.0,0.00034947,2]
[357015747,1743579051817,-3140.30443063,0.00035,2]
[357015748,1743579051828,-450.0,0.00035,2]
[357015749,1743579051837,-171.63,0.00035,2]
[357015750,1743579051846,-150.0,0.00035,7]
[357015751,1743579051856,-150.43230708,0.00035,30]
[357015752,1743579051865,-190.33,0.00035,120]
[357015753,1743579051874,-540.15,0.00035068,2]
[357015754,1743579051884,-200.0,0.00035296,2]
[357015755,1743579051893,-156.70859779,0.00035616,2]
[357015756,1743579051902,-150.79,0.00035616,2]
[357015757,1743579051912,-200.0,0.00035649,2]
[357015758,1743579051921,-151.0,0.00035904,2]
[357015759,1743579051931,-757.64,0.00036,7]
[357015760,1743579051940,-2000.0,0.000362,2]
[357015761,1743579051950,-150.79,0.00036606,2]
[357015762,1743579051959,-1112.82,0.00036888,2]
[357015763,1743579051969,-162.57649127,0.000369,2]
[357015764,1743579051978,-1000.0,0.0003697,2]
[357015765,1743579051987,-400.0,0.0003697,2]
[357015766,1743579051997,-151.59,0.0003699,2]
[357015767,1743579052007,-87591.53377301,0.00037,2]
[357015768,1743579052016,-500.0,0.00037,2]
[357015769,1743579052026,-804.47176553,0.000372,103]
[357015770,1743579052035,-804.47176552,0.000372,103]
[357015771,1743579052045,-804.47176552,0.000372,103]
[357015772,1743579052055,-150.79,0.00037595,2]
[357015773,1743579052065,-163.16,0.00038443,2]
[357015774,1743579052075,-408.05,0.00038443,2]
[357015775,1743579052084,-150.79,0.00038584,2]
[357015776,1743579052093,-151.0,0.00038904,2]
[357015777,1743579052103,-2000.0,0.00039,2]
[357015778,1743579052113,-550.0,0.00039,2]
[357015779,1743579052122,-1112.82,0.00039152,2]
[357015780,1743579052131,-150.79,0.00039574,2]
[357015781,1743579052141,-3954.50049747,0.0004,4]
[357015782,1743579052151,-1000.0,0.0004,9]
[357015783,1743579052162,-1023.0,0.0004,9]
[357015784,1743579052171,-1000.0,0.0004,9]
[357015785,1743579052182,-1002.0,0.0004,9]
[357015786,1743579052192,-1000.0,0.0004,6]
[357015787,1743579052201,-1006.0,0.0004,8]
[357015788,1743579052211,-1138.6,0.0004,4]
[357015789,1743579052220,-701.95844525,0.0004,2]
[357015790,1743579052229,-152.08429418,0.0004,2]
[357015791,1743579052239,-195.494394,0.0004,14]
[357015792,1743579052249,-151.0,0.0004,14]
[357015793,1743579052258,-151.0,0.0004,14]
[357015794,1743579052267,-292.13785,0.0004,14]
[357015795,1743579052277,-892.62,0.000405,2]
[357015796,1743579052286,-12472.66,0.000405,2]
[357015797,1743579052299,-150.79,0.00040563,2]
[357015798,1743579052308,-150.0,0.00040585,3]
[357015799,1743579052318,-150.0,0.00040585,3]
[357015800,1743579052327,-150.0,0.00040585,3]
[357015801,1743579052337,-150.0,0.00040585,3]
[357015802,1743579052346,-150.0,0.00040585,3]
[357015803,1743579052355,-150.0,0.00040585,3]
[357015804,1743579052364,-150.0,0.00040585,3]
[357015805,1743579052374,-150.0,0.00040585,3]
[357015806,1743579052383,-150.0,0.00040585,3]
[357015807,1743579052437,-152.0,0.00040674,3]
[357015808,1743579052447,-600.0,0.00041,2]
[357015809,1743579052456,-153.27,0.00041,120]
[357015810,1743579052465,-804.47176552,0.00041028,120]
[357015811,1743579052474,-440.6,0.000411,30]
[357015812,1743579052483,-783.54,0.000411,30]
[357015813,1743579052494,-783.54,0.000411,30]
[357015814,1743579052507,-783.54,0.000411,30]
[357015815,1743579052517,-783.54,0.000411,30]
[357015816,1743579052526,-1112.82,0.00041416,2]
[357015817,1743579052535,-152.0,0.00041508,4]
[357015818,1743579052546,-150.79,0.00041552,2]
[357015819,1743579052555,-2000.0,0.000417,2]
[357015820,1743579052564,-151.0,0.00041904,2]
[357015821,1743579052574,-184.38,0.00042,120]
[357015822,1743579052583,-150.76,0.00042,120]
[357015823,1743579052593,-152.0,0.00042342,5]
[357015824,1743579052601,-2000.0,0.00042446,3]
[357015825,1743579052610,-150.79,0.00042542,2]
[357015826,1743579052619,-158.8,0.00042583,2]
[357015827,1743579052628,-383.0,0.000426,3]
[357015828,1743579052637,-1000.0,0.0004267,3]
[357015829,1743579052647,-400.0,0.0004267,3]
[357015830,1743579052655,-631.36,0.000429,14]
[357015831,1743579052665,-650.0,0.00043,2]
[357015832,1743579052674,-1566.69380061,0.00043,30]
[357015833,1743579052683,-152.0,0.00043176,6]
[357015834,1743579052692,-892.62,0.000434,2]
[357015835,1743579052702,-12472.66,0.000434,2]
[357015836,1743579052711,-150.79,0.00043531,2]
[357015837,1743579052721,-1112.82,0.0004368,2]
[357015838,1743579052731,-235.4334225,0.000437,120]
[357015839,1743579052741,-150.00478414,0.00044,60]
[357015840,1743579052750,-626.20036899,0.00044,30]
[357015841,1743579052760,-152.0,0.0004401,7]
[357015842,1743579052771,-163.16,0.00044239,2]
[357015843,1743579052782,-408.05,0.00044239,2]
[357015844,1743579052791,-271.5,0.00044358,60]
[357015845,1743579052800,-2000.0,0.000444,2]
[357015846,1743579052809,-2000.0,0.00044472,10]
[357015847,1743579052819,-150.79,0.00044521,2]
[357015848,1743579052830,-152.0,0.00044845,8]
[357015849,1743579052839,-151.0,0.00044904,2]
[357015850,1743579052848,-500.0,0.00045,3]
[357015851,1743579052857,-700.0,0.00045,2]
[357015852,1743579052867,-2020.0,0.00045,120]
[357015853,1743579052876,-504.12,0.00045,120]
[357015854,1743579052885,-502.19,0.00045,5]
[357015855,1743579052896,-427.0,0.000455,2]
[357015856,1743579052907,-150.79,0.0004551,2]
[357015857,1743579052917,-152.0,0.00045679,9]
[357015858,1743579052926,-1112.82,0.00045944,2]
[357015859,1743579052935,-5023.55781491,0.00046173,21]
[357015860,1743579052945,-540.15,0.00046301,2]
[357015861,1743579052955,-151.040213,0.00046498,120]
[357015862,1743579052966,-150.79,0.00046499,2]
[357015863,1743579052979,-152.0,0.00046513,10]
[357015864,1743579052988,-1000.0,0.00046575,120]
[357015865,1743579052998,-151.0,0.000466,14]
[357015866,1743579053007,-370.0,0.000466,30]
[357015867,1743579053018,-298.0,0.000466,30]
[357015868,1743579053027,-234.0,0.000466,30]
[357015869,1743579053037,-986.8,0.000466,30]
[357015870,1743579053046,-892.62,0.000466,2]
[357015871,1743579053055,-12472.66,0.000466,2]
[357015872,1743579053065,-1000.0,0.00046849,120]
[357015873,1743579053074,-750.0,0.00047,2]
[357015874,1743579053084,-10026.0,0.00047066,2]
[357015875,1743579053094,-2000.0,0.000472,2]
[357015876,1743579053104,-152.0,0.00047347,11]
[357015877,1743579053113,-224.15379791,0.0004747,30]
[357015878,1743579053123,-150.79,0.00047489,2]
[357015879,1743579053132,-151.040213,0.00047498,120]
[357015880,1743579053142,-3433.11,0.000475,2]
[357015881,1743579053151,-206.24,0.000475,2]
[357015882,1743579053161,-151.0,0.00047904,2]
[357015883,1743579053171,-308.62013024,0.00048,15]
[357015884,1743579053181,-33530.53107387,0.00048,120]
[357015885,1743579053190,-152.0,0.00048181,12]
[357015886,1743579053200,-1112.82,0.00048207,2]
[357015887,1743579053210,-150.79,0.00048478,2]
[357015888,1743579053220,-151.040213,0.00048498,120]
[357015889,1743579053230,-382.65860607,0.000486,120]
[357015890,1743579053239,-3137.53119677,0.0004879,120]
[357015891,1743579053249,-154.99,0.000488,45]
[357015892,1743579053259,-154.99,0.000488,45]
[357015893,1743579053269,-3433.11,0.000489,2]
[357015894,1743579053281,-3433.11,0.000489,2]
[357015895,1743579053291,-206.24,0.000489,2]
[357015896,1743579053300,-206.24,0.000489,2]
[357015897,1743579053309,-500.0,0.00048904,120]
[357015898,1743579053319,-235.36295217,0.00048904,120]
[357015899,1743579053329,-2643.58,0.00049,2]
[357015900,1743579053339,-420.45,0.00049,2]
[357015901,1743579053348,-42772.50000002,0.00049,7]
[357015902,1743579053358,-884.32,0.00049,2]
[357015903,1743579053367,-800.0,0.00049,2]
[357015904,1743579053377,-79695.97275675,0.00049,3]
[357015905,1743579053387,-1023.85367887,0.00049,30]
[357015906,1743579053397,-152.0,0.00049015,13]
[357015907,1743579053406,-2643.58,0.000491,2]
[357015908,1743579053416,-420.45,0.000491,2]
[357015909,1743579053425,-214.07,0.000491,2]
[357015910,1743579053435,-884.32,0.000491,2]
[357015911,1743579053444,-239.53392273,0.0004921,30]
[357015912,1743579053454,-170.850537,0.0004921,30]
[357015913,1743579053464,-150.0,0.0004921,30]
[357015914,1743579053474,-150.0,0.0004921,30]
[357015915,1743579053484,-240.84990367,0.0004921,30]
[357015916,1743579053494,-267.59567155,0.0004921,30]
[357015917,1743579053508,-156.987229,0.00049212,30]
[357015918,1743579053517,-2643.58,0.000493,2]
[357015919,1743579053527,-420.45,0.000493,2]
[357015920,1743579053536,-884.32,0.000493,2]
[357015921,1743579053546,-150.0,0.00049314,120]
[357015922,1743579053556,-500.0,0.00049315,120]
[357015923,1743579053566,-504.810773,0.00049315,10]
[357015924,1743579053575,-500.0,0.00049315,120]
[357015925,1743579053586,-1643.03,0.00049315,10]
[357015926,1743579053596,-500.0,0.00049315,120]
[357015927,1743579053606,-500.0,0.00049315,120]
[357015928,1743579053615,-176.91094095,0.00049315,120]
[357015929,1743579053628,-500.0,0.00049315,120]
[357015930,1743579053638,-500.0,0.00049315,120]
[357015931,1743579053648,-500.0,0.00049315,120]
[357015932,1743579053661,-500.0,0.00049315,120]
[357015933,1743579053671,-500.0,0.00049315,120]
[357015934,1743579053680,-500.0,0.00049315,120]
[357015935,1743579053690,-500.0,0.00049315,120]
[357015936,1743579053699,-500.0,0.00049315,120]
[357015937,1743579053708,-500.0,0.00049315,120]
[357015938,1743579053717,-500.0,0.00049315,120]
[357015939,1743579053727,-500.0,0.00049315,120]
[357015940,1743579053736,-500.0,0.00049315,120]
[357015941,1743579053746,-500.0,0.00049315,120]
[357015942,1743579053755,-500.0,0.00049315,120]
[357015943,1743579053764,-500.0,0.00049315,120]
[357015944,1743579053774,-623.10678917,0.00049315,120]
[357015945,1743579053783,-2000.0,0.00049315,2]
[357015946,1743579053792,-500.0,0.00049315,12]
[357015947,1743579053802,-500.0,0.00049315,120]
[357015948,1743579053811,-500.0,0.00049315,120]
[357015949,1743579053821,-322.52869575,0.00049315,120]
[357015950,1743579053831,-500.0,0.00049315,120]
[357015951,1743579053840,-500.0,0.00049315,120]
[357015952,1743579053849,-500.0,0.00049315,120]
[357015953,1743579053860,-150.0,0.00049315,120]
[357015954,1743579053871,-500.0,0.00049315,120]
[357015955,1743579053881,-500.0,0.00049315,30]
[357015956,1743579053892,-500.0,0.00049315,120]
[357015957,1743579053903,-500.0,0.00049315,120]
[357015958,1743579053914,-532.54777947,0.00049315,120]
[357015959,1743579053925,-500.0,0.00049315,120]
[357015960,1743579053935,-300.0,0.00049315,30]
[357015961,1743579053945,-417.60859953,0.00049315,120]
[357015962,1743579053955,-252.0,0.00049315,30]
[357015963,1743579053967,-250.0,0.00049315,30]
[357015964,1743579053977,-500.0,0.00049315,120]
[357015965,1743579053986,-500.0,0.00049315,120]
[357015966,1743579053997,-500.0,0.00049315,120]
[357015967,1743579054007,-500.0,0.00049315,120]
[357015968,1743579054017,-500.0,0.00049315,120]
[357015969,1743579054027,-500.0,0.00049315,120]
[357015970,1743579054038,-500.0,0.00049315,120]
[357015971,1743579054047,-500.0,0.00049315,120]
[357015972,1743579054056,-500.0,0.00049315,120]
[357015973,1743579054066,-500.0,0.00049315,120]
[357015974,1743579054075,-500.0,0.00049315,120]
[357015975,1743579054084,-500.0,0.00049315,120]
[357015976,1743579054094,-500.0,0.00049315,120]
[357015977,1743579054105,-500.0,0.00049315,120]
[357015978,1743579054115,-500.0,0.00049315,120]
[357015979,1743579054124,-500.0,0.00049315,120]
[357015980,1743579054134,-500.0,0.00049315,120]
[357015981,1743579054143,-500.0,0.00049315,120]
[357015982,1743579054153,-500.0,0.00049315,120]
[357015983,1743579054163,-500.0,0.00049315,120]
[357015984,1743579054172,-500.0,0.00049315,120]
[357015985,1743579054181,-500.0,0.00049315,120]
[357015986,1743579054191,-500.0,0.00049315,120]
[357015987,1743579054201,-500.0,0.00049315,120]
[357015988,1743579054210,-500.0,0.00049315,120]
[357015989,1743579054220,-500.0,0.00049315,120]
[357015990,1743579054230,-645.16841487,0.00049315,120]
[357015991,1743579054239,-500.0,0.00049315,120]
[357015992,1743579054248,-500.0,0.00049315,120]
[357015993,1743579054257,-500.0,0.00049315,120]
[357015994,1743579054267,-500.0,0.00049315,120]
[357015995,1743579054277,-500.0,0.00049315,120]
[357015996,1743579054286,-500.0,0.00049315,120]
[357015997,1743579054295,-500.0,0.00049315,120]
[357015998,1743579054306,-500.0,0.00049315,120]
[357015999,1743579054316,-500.0,0.00049315,120]
[357016000,1743579054325,-500.0,0.00049315,120]
[357016001,1743579054335,-500.0,0.00049315,120]
[357016002,1743579054345,-500.0,0.00049315,120]
[357016003,1743579054354,-500.0,0.00049315,120]
[357016004,1743579054364,-500.0,0.00049315,120]
[357016005,1743579054374,-272.1921012,0.00049315,120]
[357016006,1743579054383,-500.0,0.00049315,120]
[357016007,1743579054392,-541.03387055,0.00049315,120]
[357016008,1743579054402,-560.1,0.00049315,120]
[357016009,1743579054411,-500.0,0.00049315,120]
[357016010,1743579054420,-500.0,0.00049315,120]
[357016011,1743579054430,-500.0,0.00049315,120]
[357016012,1743579054439,-500.0,0.00049315,120]
[357016013,1743579054449,-500.0,0.00049315,120]
[357016014,1743579054458,-500.0,0.00049315,120]
[357016015,1743579054468,-500.0,0.00049315,120]
[357016016,1743579054477,-500.0,0.00049315,120]
[357016017,1743579054486,-500.0,0.00049315,120]
[357016018,1743579054498,-500.0,0.00049315,120]
[357016019,1743579054509,-500.0,0.00049315,120]
[357016020,1743579054518,-500.0,0.00049315,120]
[357016021,1743579054527,-500.0,0.00049315,120]
[357016022,1743579054537,-500.0,0.00049315,120]
[357016023,1743579054546,-500.0,0.00049315,120]
[357016024,1743579054555,-500.0,0.00049315,120]
[357016025,1743579054564,-500.0,0.00049315,120]
[357016026,1743579054575,-500.0,0.00049315,120]
[357016027,1743579054585,-500.0,0.00049315,120]
[357016028,1743579054595,-191.57392176,0.00049315,120]
[357016029,1743579054605,-500.0,0.00049315,120]
[357016030,1743579054615,-500.0,0.00049315,120]
[357016031,1743579054624,-500.0,0.00049315,120]
[357016032,1743579054634,-500.0,0.00049315,120]
[357016033,1743579054643,-500.0,0.00049315,120]
[357016034,1743579054653,-1817.48,0.00049315,2]
[357016035,1743579054663,-499.99999999,0.00049315,120]
[357016036,1743579054672,-312.79445778,0.00049315,120]
[357016037,1743579054682,-526.71051942,0.00049315,120]
[357016038,1743579054691,-533.99128082,0.00049315,120]
[357016039,1743579054701,-519.33523943,0.00049315,120]
[357016040,1743579054710,-552.66773836,0.00049315,120]
[357016041,1743579054719,-529.13417202,0.00049315,120]
[357016042,1743579054729,-500.0,0.00049315,120]
[357016043,1743579054738,-509.26078511,0.00049315,120]
[357016044,1743579054747,-725.75118924,0.00049315,120]
[357016045,1743579054757,-725.75118924,0.00049315,120]
[357016046,1743579054766,-725.75118924,0.00049315,120]
[357016047,1743579054776,-725.75118924,0.00049315,120]
[357016048,1743579054785,-725.75118924,0.00049315,120]
[357016049,1743579054795,-725.75118924,0.00049315,120]
[357016050,1743579054804,-513.97269806,0.00049315,120]
[357016051,1743579054814,-725.75118924,0.00049315,120]
[357016052,1743579054824,-725.75118924,0.00049315,120]
[357016053,1743579054834,-725.75118924,0.00049315,120]
[357016054,1743579054844,-500.0,0.00049315,120]
[357016055,1743579054853,-725.75118924,0.00049315,120]
[357016056,1743579054863,-500.0,0.00049315,120]
[357016057,1743579054874,-500.0,0.00049315,120]
[357016058,1743579054883,-500.0,0.00049315,120]
[357016059,1743579054893,-500.0,0.00049315,120]
[357016060,1743579054902,-500.0,0.00049315,120]
[357016061,1743579054912,-500.0,0.00049315,120]
[357016062,1743579054921,-500.0,0.00049315,120]
[357016063,1743579054931,-500.0,0.00049315,120]
[357016064,1743579054941,-500.0,0.00049315,120]
[357016065,1743579054951,-521.40200357,0.00049315,120]
[357016066,1743579054961,-500.0,0.00049315,120]
[357016067,1743579054971,-500.0,0.00049315,120]
[357016068,1743579054981,-500.0,0.00049315,120]
[357016069,1743579054991,-500.0,0.00049315,120]
[357016070,1743579055010,-300.00000001,0.00049315,120]
[357016071,1743579055021,-500.0,0.00049315,120]
[357016072,1743579055031,-500.0,0.00049315,120]
[357016073,1743579055043,-500.0,0.00049315,120]
[357016074,1743579055055,-500.0,0.00049315,120]
[357016075,1743579055066,-500.0,0.00049315,120]
[357016076,1743579055077,-500.0,0.00049315,120]
[357016077,1743579055088,-500.0,0.00049315,120]
[357016078,1743579055099,-725.75118924,0.00049315,120]
[357016079,1743579055110,-725.75118924,0.00049315,120]
[357016080,1743579055121,-516.46984466,0.00049315,120]
[357016081,1743579055131,-725.75118924,0.00049315,120]
[357016082,1743579055143,-725.75118924,0.00049315,120]
[357016083,1743579055155,-725.75118924,0.00049315,120]
[357016084,1743579055276,-725.75118924,0.00049315,120]
[357016085,1743579055298,-725.75118924,0.00049315,120]
[357016086,1743579055308,-725.75118924,0.00049315,120]
[357016087,1743579055318,-725.75118924,0.00049315,120]
[357016088,1743579055327,-725.75118924,0.00049315,120]
[357016089,1743579055339,-725.75118924,0.00049315,120]
[357016090,1743579055349,-725.75118924,0.00049315,120]
[357016091,1743579055359,-725.75118924,0.00049315,120]
[357016092,1743579055369,-725.75118924,0.00049315,120]
[357016093,1743579055379,-523.98329913,0.00049315,120]
[357016094,1743579055389,-500.0,0.00049315,120]
[357016095,1743579055399,-646.91900369,0.00049315,120]
[357016096,1743579055408,-500.0,0.00049315,120]
[357016097,1743579055417,-536.28384569,0.00049315,120]
[357016098,1743579055427,-500.0,0.00049315,120]
[357016099,1743579055437,-529.60304918,0.00049315,120]
[357016100,1743579055447,-518.88605414,0.00049315,120]
[357016101,1743579055456,-500.0,0.00049315,120]
[357016102,1743579055466,-427.58355554,0.00049315,120]
[357016103,1743579055475,-500.0,0.00049315,120]
[357016104,1743579055484,-500.0,0.00049315,120]
[357016105,1743579055493,-500.0,0.00049315,120]
[357016106,1743579055506,-500.0,0.00049315,120]
[357016107,1743579055515,-500.0,0.00049315,120]
[357016108,1743579055525,-350.0,0.00049315,120]
[357016109,1743579055535,-500.0,0.00049315,120]
[357016110,1743579055544,-500.0,0.00049315,120]
[357016111,1743579055554,-500.0,0.00049315,120]
[357016112,1743579055563,-500.0,0.00049315,120]
[357016113,1743579055573,-500.0,0.00049315,120]
[357016114,1743579055583,-500.0,0.00049315,120]
[357016115,1743579055593,-515.0784765,0.00049315,120]
[357016116,1743579055602,-551.77634762,0.00049315,120]
[357016117,1743579055612,-514.95920063,0.00049315,120]
[357016118,1743579055622,-500.0,0.00049315,120]
[357016119,1743579055631,-568.69085354,0.00049315,120]
[357016120,1743579055641,-557.32367035,0.00049315,120]
[357016121,1743579055650,-513.03402652,0.00049315,120]
[357016122,1743579055660,-494.0,0.00049315,120]
[357016123,1743579055669,-500.0,0.00049315,120]
[357016124,1743579055678,-553.6875198,0.00049315,120]
[357016125,1743579055688,-500.0,0.00049315,120]
[357016126,1743579055697,-595.91177729,0.00049315,120]
[357016127,1743579055706,-500.0,0.00049315,120]
[357016128,1743579055715,-569.15968157,0.00049315,120]
[357016129,1743579055724,-531.17987081,0.00049315,120]
[357016130,1743579055733,-567.904898,0.00049315,120]
[357016131,1743579055742,-190.93313529,0.00049315,120]
[357016132,1743579055751,-517.08141586,0.00049315,120]
[357016133,1743579055761,-518.3101326,0.00049315,120]
[357016134,1743579055770,-500.0,0.00049315,120]
[357016135,1743579055780,-500.0,0.00049315,120]
[357016136,1743579055789,-518.0152244,0.00049315,120]
[357016137,1743579055799,-576.78421149,0.00049315,120]
[357016138,1743579055809,-500.0,0.00049315,120]
[357016139,1743579055818,-508.40544857,0.00049315,120]
[357016140,1743579055827,-500.0,0.00049315,120]
[357016141,1743579055838,-500.0,0.00049315,2]
[357016142,1743579055848,-500.0,0.00049315,120]
[357016143,1743579055858,-500.0,0.00049315,120]
[357016144,1743579055868,-215.85450497,0.00049315,120]
[357016145,1743579055878,-572.52504742,0.00049315,120]
[357016146,1743579055887,-539.78516012,0.00049315,120]
[357016147,1743579055897,-500.0,0.00049315,120]
[357016148,1743579055906,-500.0,0.00049315,120]
[357016149,1743579055916,-511.54251829,0.00049315,120]
[357016150,1743579055927,-500.0,0.00049315,120]
[357016151,1743579055936,-500.0,0.00049315,120]
[357016152,1743579055946,-533.55925348,0.00049315,120]
[357016153,1743579055956,-500.0,0.00049315,120]
[357016154,1743579055966,-500.0,0.00049315,120]
[357016155,1743579055975,-500.0,0.00049315,120]
[357016156,1743579055985,-512.09794927,0.00049315,120]
[357016157,1743579055994,-500.0,0.00049315,120]
[357016158,1743579056004,-500.0,0.00049315,7]
[357016159,1743579056014,-553.93019923,0.00049315,120]
[357016160,1743579056023,-500.0,0.00049315,120]
[357016161,1743579056032,-500.0,0.00049315,120]
[357016162,1743579056042,-500.00038301,0.00049315,120]
[357016163,1743579056051,-517.7005765,0.00049315,120]
[357016164,1743579056061,-523.37743004,0.00049315,120]
[357016165,1743579056070,-500.0,0.00049315,120]
[357016166,1743579056079,-536.82421418,0.00049315,120]
[357016167,1743579056089,-525.54331411,0.00049315,120]
[357016168,1743579056099,-498.52073873,0.00049315,120]
[357016169,1743579056109,-511.4892805,0.00049315,120]
[357016170,1743579056119,-500.0,0.00049315,120]
[357016171,1743579056128,-500.0,0.00049315,120]
[357016172,1743579056138,-500.0,0.00049315,120]
[357016173,1743579056147,-500.0,0.00049315,120]
[357016174,1743579056157,-514.4121234,0.00049315,120]
[357016175,1743579056167,-500.0,0.00049315,120]
[357016176,1743579056176,-554.81260863,0.00049315,120]
[357016177,1743579056186,-534.87478588,0.00049315,120]
[357016178,1743579056195,-500.0,0.00049315,120]
[357016179,1743579056205,-518.02612347,0.00049315,120]
[357016180,1743579056215,-516.86253347,0.00049315,120]
[357016181,1743579056224,-500.0,0.00049315,120]
[357016182,1743579056234,-519.0574777,0.00049315,120]
[357016183,1743579056243,-528.84261431,0.00049315,120]
[357016184,1743579056253,-630.64061457,0.00049315,120]
[357016185,1743579056262,-500.0,0.00049315,120]
[357016186,1743579056272,-500.0,0.00049315,120]
[357016187,1743579056282,-500.0,0.00049315,120]
[357016188,1743579056291,-500.0,0.00049315,120]
[357016189,1743579056300,-165.40672135,0.00049315,120]
[357016190,1743579056310,-500.0,0.00049315,120]
[357016191,1743579056323,-500.0,0.00049315,120]
[357016192,1743579056333,-500.0,0.00049315,120]
[357016193,1743579056343,-533.70028107,0.00049315,120]
[357016194,1743579056353,-630.99068237,0.00049315,120]
[357016195,1743579056362,-612.68906155,0.00049315,120]
[357016196,1743579056372,-500.0,0.00049315,120]
[357016197,1743579056381,-500.0,0.00049315,120]
[357016198,1743579056391,-500.0,0.00049315,120]
[357016199,1743579056401,-561.63420768,0.00049315,120]
[357016200,1743579056411,-500.0,0.00049315,120]
[357016201,1743579056421,-500.0,0.00049315,120]
[357016202,1743579056430,-500.0,0.00049315,120]
[357016203,1743579056439,-538.47048749,0.00049315,120]
[357016204,1743579056449,-158.674773,0.00049315,2]
[357016205,1743579056459,-834.73,0.00049315,120]
[357016206,1743579056469,-84638.93,0.00049315,7]
[357016207,1743579056478,-500.0,0.00049315,120]
[357016208,1743579056488,-548.02560616,0.00049315,120]
[357016209,1743579056503,-541.55703111,0.00049315,120]
[357016210,1743579056513,-10300.02,0.00049315,2]
[357016211,1743579056523,-500.0,0.00049315,30]
[357016212,1743579056533,-593.81727452,0.00049315,120]
[357016213,1743579056543,-550.47899753,0.00049315,120]
[357016214,1743579056552,-603.24405438,0.00049315,120]
[357016215,1743579056562,-500.0,0.00049315,120]
[357016216,1743579056571,-500.0,0.00049315,120]
[357016217,1743579056583,-500.23583163,0.00049315,2]
[357016218,1743579056592,-526.42082831,0.00049315,120]
[357016219,1743579056601,-500.0,0.00049315,120]
[357016220,1743579056611,-381.45077204,0.00049315,120]
[357016221,1743579056620,-601.88762683,0.00049315,120]
[357016222,1743579056630,-500.0,0.00049315,120]
[357016223,1743579056639,-500.0,0.00049315,120]
[357016224,1743579056649,-500.0,0.00049315,120]
[357016225,1743579056658,-263.71161817,0.00049315,100]
[357016226,1743579056667,-500.0,0.00049315,2]
[357016227,1743579056677,-237.19931283,0.00049315,120]
[357016228,1743579056686,-500.0,0.00049315,120]
[357016229,1743579056695,-540.66239839,0.00049315,120]
[357016230,1743579056706,-713.48,0.00049315,2]
[357016231,1743579056716,-562.52657861,0.00049315,120]
[357016232,1743579056726,-628.2,0.00049315,120]
[357016233,1743579056735,-574.98376755,0.00049315,120]
[357016234,1743579056745,-500.0,0.00049315,120]
[357016235,1743579056756,-500.0,0.00049315,120]